bitfinex/quotes_BTCUSD_20221001
["timestamp","ask_amount","ask_price","bid_price","bid_amount"]
[1664607875319,4.67644597,19292.0,19291.0,0.39307358]
[1664607875542,4.67644597,19292.0,19291.0,0.00429158]
[1664607875768,4.75594597,19292.0,19291.0,0.00429158]
[1664607875994,4.71844597,19292.0,19291.0,0.00429158]
[1664607877341,4.67644597,19292.0,19291.0,0.00429158]
[1664607877565,4.75594597,19292.0,19291.0,0.00429158]
[1664607877783,4.67644597,19292.0,19291.0,0.00429158]
[1664607878055,4.71844597,19292.0,19291.0,0.00429158]
[1664607879164,4.67644597,19292.0,19291.0,0.00429158]
[1664607880049,4.71844597,19292.0,19291.0,0.00429158]
[1664607881196,4.67644597,19292.0,19291.0,0.00429158]
[1664607882017,4.71844597,19292.0,19291.0,0.00429158]
[1664607882233,4.84803297,19292.0,19291.0,0.00429158]
[1664607882521,4.92753297,19292.0,19291.0,0.00429158]
[1664607882807,4.84803297,19292.0,19291.0,0.00429158]
[1664607883275,4.88553297,19292.0,19291.0,0.00429158]
[1664607883490,4.80603297,19292.0,19291.0,0.00429158]
[1664607883949,4.84803297,19292.0,19291.0,0.00429158]
[1664607885283,4.80603297,19292.0,19291.0,0.00429158]
[1664607885995,4.84803297,19292.0,19291.0,0.00429158]
[1664607887300,4.80603297,19292.0,19291.0,0.00429158]
[1664607887974,4.84803297,19292.0,19291.0,0.00429158]
[1664607889621,4.80603297,19292.0,19291.0,0.00429158]
[1664607890042,4.84803297,19292.0,19291.0,0.00429158]
[1664607891235,4.80603297,19292.0,19291.0,0.00429158]
[1664607892091,4.84803297,19292.0,19291.0,0.00429158]
[1664607893253,4.80603297,19292.0,19291.0,0.00429158]
[1664607894121,4.84903297,19292.0,19291.0,0.00429158]
[1664607895125,5.06520697,19292.0,19291.0,0.00429158]
[1664607896002,5.10820697,19292.0,19291.0,0.00429158]
[1664607897330,5.06520697,19292.0,19291.0,0.00429158]
[1664607897891,5.60125102,19292.0,19291.0,0.00429158]
[1664607898346,5.68075102,19292.0,19291.0,0.00418967]
[1664607898567,5.60125102,19292.0,19291.0,0.00418967]
[1664607898778,5.68075102,19292.0,19291.0,0.00418967]
[1664607899222,5.56125102,19292.0,19291.0,0.00418967]
[1664607899894,5.60125102,19292.0,19291.0,0.00418967]
[1664607900343,5.60730127,19292.0,19291.0,0.00418967]
[1664607901234,5.56730127,19292.0,19291.0,0.00418967]
[1664607902140,5.63230127,19292.0,19291.0,0.00418967]
[1664607903364,5.56730127,19292.0,19291.0,0.00418967]
[1664607903782,5.74840815,19292.0,19291.0,0.00418967]
[1664607903956,5.75244402,19292.0,19291.0,0.00418967]
[1664607904168,5.71180127,19292.0,19291.0,0.00418967]
[1664607904346,5.75244402,19292.0,19291.0,0.00418967]
[1664607904869,5.71180127,19292.0,19291.0,0.00418967]
[1664607905308,5.64680127,19292.0,19291.0,0.00418967]
[1664607905732,5.56730127,19292.0,19291.0,0.00418967]
[1664607906075,5.71180127,19292.0,19291.0,0.00418967]
[1664607906293,6.23015027,19292.0,19291.0,0.00418967]
[1664607907181,6.16515027,19292.0,19291.0,0.00418967]
[1664607907640,6.20579302,19292.0,19291.0,0.00418967]
[1664607908073,6.23015027,19292.0,19291.0,0.00418967]
[1664607908293,6.52980502,19292.0,19289.0,0.131645]
[1664607908575,6.45030502,19292.0,19290.0,0.00418967]
[1664607908796,0.62261622,19291.0,19290.0,0.00418967]
[1664607909010,0.54311622,19291.0,19290.0,0.07323931]
[1664607909231,0.62261622,19291.0,19290.0,0.07323931]
[1664607910112,0.68461622,19291.0,19290.0,0.07323931]
[1664607911310,0.530283,19291.0,19290.0,0.07323931]
[1664607911529,0.468283,19291.0,19290.0,0.07323931]
[1664607911964,0.388783,19291.0,19290.0,0.07323931]
[1664607912182,0.530283,19291.0,19290.0,0.07323931]
[1664607913135,3.00182966,19291.0,19290.0,0.07323931]
[1664607913351,2.93982966,19291.0,19290.0,0.07323931]
[1664607913800,0.468283,19291.0,19290.0,0.07323931]
[1664607914235,1.54470305,19291.0,19290.0,0.07323931]
[1664607914453,1.28531729,19291.0,19290.0,0.07323931]
[1664607915389,1.14381729,19291.0,19290.0,0.07323931]
[1664607915842,0.62544129,19291.0,19290.0,0.07323931]
[1664607916250,0.68744129,19291.0,19290.0,0.07323931]
[1664607916700,0.76694129,19291.0,19290.0,0.07323931]
[1664607916921,0.68744129,19291.0,19290.0,0.07323931]
[1664607917586,0.62544129,19291.0,19290.0,0.07323931]
[1664607918246,0.68744129,19291.0,19290.0,0.07323931]
[1664607919175,0.76694129,19291.0,19290.0,0.07323931]
[1664607919419,0.70494129,19291.0,19290.0,0.07323931]
[1664607920072,0.76694129,19291.0,19290.0,0.07323931]
[1664607920310,0.68744129,19291.0,19290.0,0.07323931]
[1664607920745,0.68744129,19291.0,19290.0,0.07280053]
[1664607920972,0.88636344,19291.0,19290.0,0.07280053]
[1664607921193,0.68494129,19291.0,19290.0,0.07280053]
[1664607921438,0.70244129,19291.0,19290.0,0.07280053]
[1664607922089,1.28281729,19291.0,19290.0,0.07280053]
[1664607923010,1.20331729,19291.0,19290.0,0.07280053]
[1664607923227,1.28281729,19291.0,19290.0,0.07280053]
[1664607923443,1.22081729,19291.0,19290.0,0.07280053]
[1664607923657,1.14131729,19291.0,19290.0,0.07280053]
[1664607923926,1.28651,19291.0,19290.0,0.07280053]
[1664607924147,1.36551,19291.0,19290.0,0.07280053]
[1664607924363,5.36784644,19291.0,19290.0,0.07280053]
[1664607924789,5.28834644,19291.0,19290.0,0.07280053]
[1664607925367,5.20934644,19291.0,19290.0,0.07280053]
[1664607925575,5.28884644,19291.0,19290.0,0.07280053]
[1664607926058,5.36784644,19291.0,19290.0,0.07280053]
[1664607926668,5.28834644,19291.0,19290.0,0.07280053]
[1664607927117,5.36784644,19291.0,19290.0,0.07280053]
[1664607927339,5.28884644,19291.0,19290.0,0.07280053]
[1664607927538,5.20934644,19291.0,19290.0,0.07280053]
[1664607927991,5.28884644,19291.0,19290.0,0.07280053]
[1664607928215,5.36784644,19291.0,19290.0,0.07280053]
[1664607928656,1.36551,19291.0,19290.0,0.07280053]
[1664607929374,1.20701,19291.0,19290.0,0.07280053]
[1664607929606,1.28651,19291.0,19290.0,0.07280053]
[1664607930119,1.36551,19291.0,19290.0,0.07280053]
[1664607930583,1.28601,19291.0,19290.0,0.07280053]
[1664607930797,1.36551,19291.0,19290.0,0.07280053]
[1664607931041,1.88601,19291.0,19290.0,0.07280053]
[1664607931266,2.94146058,19291.0,19290.0,0.07280053]
[1664607931552,2.26246058,19291.0,19290.0,0.07280053]
[1664607932002,2.54049107,19291.0,19290.0,0.07280053]
[1664607932222,2.97440061,19291.0,19290.0,0.07280053]
[1664607932450,2.93369194,19291.0,19290.0,0.07280053]
[1664607932707,2.61142515,19291.0,19290.0,0.07280053]
[1664607933371,2.54042515,19291.0,19290.0,0.07280053]
[1664607933819,2.47952694,19291.0,19290.0,0.07280053]
[1664607934099,2.52952694,19291.0,19290.0,0.07280053]
[1664607934308,2.58352694,19291.0,19290.0,0.07280053]
[1664607934760,2.64442973,19291.0,19290.0,0.07280053]
[1664607934983,3.59442973,19291.0,19290.0,0.07280053]
[1664607935400,3.54042973,19291.0,19290.0,0.07280053]
[1664607935654,6.08010986,19291.0,19290.0,0.07280053]
[1664607935881,6.41702644,19291.0,19290.0,0.07280053]
[1664607936319,6.47102644,19291.0,19290.0,0.07280053]
[1664607936542,6.79307139,19291.0,19290.0,0.07280053]
[1664607936757,6.38974094,19291.0,19290.0,0.07280053]
[1664607937206,6.31661417,19291.0,19290.0,0.07280053]
[1664607937432,6.22189893,19291.0,19290.0,0.07280053]
[1664607937952,6.27189893,19291.0,19290.0,0.07280053]
[1664607938178,6.24000729,19291.0,19290.0,0.07280053]
[1664607938411,6.66366498,19291.0,19290.0,0.07280053]
[1664607938629,6.29000729,19291.0,19290.0,0.07280053]
[1664607938852,6.75677258,19291.0,19290.0,0.07280053]
[1664607939068,6.55060729,19291.0,19290.0,0.07280053]
[1664607939282,6.60221417,19291.0,19290.0,0.07280053]
[1664607939548,6.48249996,19291.0,19290.0,0.07280053]
[1664607939758,6.40299996,19291.0,19290.0,0.07280053]
[1664607939978,6.48249996,19291.0,19290.0,0.07280053]
[1664607940215,6.56149996,19291.0,19290.0,0.07280053]
[1664607940884,6.55649996,19291.0,19290.0,0.07280053]
[1664607941085,4.00591704,19291.0,19290.0,0.07280053]
[1664607941546,2.86602437,19291.0,19290.0,0.07280053]
[1664607941826,2.12582736,19291.0,19290.0,0.07280053]
[1664607942062,2.20532736,19291.0,19290.0,0.07280053]
[1664607942261,2.17682649,19291.0,19290.0,0.07280053]
[1664607942491,2.25632649,19291.0,19290.0,0.07280053]
[1664607942729,2.25632656,19291.0,19290.0,0.07280053]
[1664607943168,2.17682656,19291.0,19290.0,0.07280053]
[1664607943306,2.25632656,19291.0,19290.0,0.07280053]
[1664607943548,2.20532656,19291.0,19290.0,0.07280053]
[1664607944160,2.26932656,19291.0,19290.0,0.07280053]
[1664607944940,2.26932618,19291.0,19290.0,0.07280053]
[1664607945489,2.20532618,19291.0,19290.0,0.07280053]
[1664607945736,2.1444353,19291.0,19290.0,0.07280053]
[1664607945951,2.0649353,19291.0,19290.0,0.07280053]
[1664607946171,2.2054353,19291.0,19290.0,0.07280053]
[1664607947404,2.1444353,19291.0,19290.0,0.07280053]
[1664607947625,1.8338353,19291.0,19290.0,0.07280053]
[1664607947837,1.64804873,19291.0,19290.0,0.07280053]
[1664607948269,1.78854873,19291.0,19290.0,0.07280053]
[1664607949128,1.82914259,19291.0,19290.0,0.07280053]
[1664607949406,2.10943726,19291.0,19290.0,0.07280053]
[1664607949652,2.04843726,19291.0,19290.0,0.07280053]
[1664607949798,2.70932814,19291.0,19290.0,0.07280053]
[1664607950224,2.77032814,19291.0,19290.0,0.07280053]
[1664607950431,2.10943726,19291.0,19290.0,0.07280053]
[1664607950986,1.82914259,19291.0,19290.0,0.07280053]
[1664607951197,1.19067273,19291.0,19290.0,0.07280053]
[1664607951408,1.12967273,19291.0,19290.0,0.07280053]
[1664607951802,1.20917273,19291.0,19290.0,0.07280053]
[1664607952191,1.25817273,19291.0,19290.0,0.07280053]
[1664607953433,1.20917273,19291.0,19290.0,0.07280053]
[1664607954255,5.26902104,19291.0,19290.0,0.07280053]
[1664607955528,5.21602104,19291.0,19290.0,0.07280053]
[1664607956175,5.73439704,19291.0,19290.0,0.07280053]
[1664607956392,5.79339704,19291.0,19290.0,0.07280053]
[1664607956904,5.27502104,19291.0,19290.0,0.07280053]
[1664607957367,5.81165895,19291.0,19290.0,0.07280053]
[1664607957594,7.4235211,19291.0,19290.0,0.07280053]
[1664607957816,7.46411727,19291.0,19290.0,0.07280053]
[1664607958288,7.51811727,19291.0,19290.0,0.07280053]
[1664607958502,7.55883327,19291.0,19290.0,0.07280053]
[1664607958739,7.66212767,19291.0,19290.0,0.07280053]
[1664607959419,7.60812767,19291.0,19290.0,0.07280053]
[1664607960217,7.55763198,19291.0,19290.0,0.07280053]
[1664607960435,7.60162381,19291.0,19290.0,0.07280053]
[1664607960666,7.39674642,19291.0,19290.0,0.07280053]
[1664607960873,7.45763052,19291.0,19290.0,0.07280053]
[1664607961083,7.44674642,19291.0,19290.0,0.07280053]
[1664607961518,7.36774642,19291.0,19290.0,0.07280053]
[1664607961740,7.4693533,19291.0,19290.0,0.07280053]
[1664607961964,7.5726329,19291.0,19290.0,0.07280053]
[1664607962193,7.6236329,19291.0,19290.0,0.07280053]
[1664607963034,3.61678459,19291.0,19290.0,0.07280053]
[1664607963507,3.51578459,19291.0,19290.0,0.07280053]
[1664607963713,3.56578459,19291.0,19290.0,0.07280053]
[1664607963925,3.51578459,19291.0,19290.0,0.07269601]
[1664607964250,3.66478459,19291.0,19290.0,0.07269601]
[1664607964823,3.58359456,19291.0,19290.0,0.07269601]
[1664607965041,3.61477413,19291.0,19290.0,0.07269601]
[1664607965269,3.66477413,19291.0,19290.0,0.07269601]
[1664607965543,3.61577413,19291.0,19290.0,0.07269601]
[1664607965690,3.56577413,19291.0,19290.0,0.07269601]
[1664607966112,3.51577413,19291.0,19290.0,0.07269601]
[1664607966349,3.56477413,19291.0,19290.0,0.07269601]
[1664607966576,3.01477413,19291.0,19290.0,0.07269601]
[1664607966800,3.53359456,19291.0,19290.0,0.07269601]
[1664607967023,3.58359456,19291.0,19290.0,0.07269601]
[1664607967458,3.5157789,19291.0,19290.0,0.07269601]
[1664607967710,3.43459456,19291.0,19290.0,0.07269601]
[1664607967919,3.51577749,19291.0,19290.0,0.07269601]
[1664607968400,3.48559456,19291.0,19290.0,0.07269601]
[1664607968551,3.53559456,19291.0,19290.0,0.07269601]
[1664607968795,3.61677848,19291.0,19290.0,0.07269601]
[1664607969000,3.56677848,19291.0,19290.0,0.07269601]
[1664607969265,3.61677848,19291.0,19290.0,0.07269601]
[1664607969409,3.61577848,19291.0,19290.0,0.07269601]
[1664607969692,3.53459456,19291.0,19290.0,0.07269601]
[1664607970364,3.58559456,19291.0,19290.0,0.07269601]
[1664607970998,3.53559456,19291.0,19290.0,0.07269601]
[1664607971524,3.48459456,19291.0,19290.0,0.07269601]
[1664607972159,3.43459456,19291.0,19290.0,0.07269601]
[1664607972413,3.48359456,19291.0,19290.0,0.07269601]
[1664607972594,3.58359456,19291.0,19290.0,0.07269601]
[1664607973697,3.48459456,19291.0,19290.0,0.07269601]
[1664607974300,3.53359456,19291.0,19290.0,0.07269601]
[1664607974689,3.58359456,19291.0,19290.0,0.07269601]
[1664607974912,3.48359456,19291.0,19290.0,0.07269601]
[1664607975391,3.53359456,19291.0,19290.0,0.07269601]
[1664607975597,3.48459456,19291.0,19290.0,0.07269601]
[1664607976303,3.58559456,19291.0,19290.0,0.07269601]
[1664607976623,3.53559456,19291.0,19290.0,0.07269601]
[1664607976982,3.58559456,19291.0,19290.0,0.07269601]
[1664607978077,3.53459456,19291.0,19290.0,0.07269601]
[1664607978287,3.58359456,19291.0,19290.0,0.07269601]
[1664607979129,3.48359456,19291.0,19290.0,0.07269601]
[1664607979345,3.53359456,19291.0,19290.0,0.07269601]
[1664607979483,3.48459456,19291.0,19290.0,0.07269601]
[1664607979692,3.43459456,19291.0,19290.0,0.07269601]
[1664607980005,3.48459456,19291.0,19290.0,0.07269601]
[1664607980407,3.53359456,19291.0,19290.0,0.07269601]
[1664607980629,3.58359456,19291.0,19290.0,0.07269601]
[1664607980806,3.53359456,19291.0,19290.0,0.07269601]
[1664607981040,3.48198768,19291.0,19290.0,0.07269601]
[1664607981535,3.43298768,19291.0,19290.0,0.07269601]
[1664607982403,3.48398768,19291.0,19290.0,0.07269601]
[1664607982619,3.43398768,19291.0,19290.0,0.07269601]
[1664607982837,3.53548802,19291.0,19290.0,0.07269601]
[1664607983485,3.53448802,19291.0,19290.0,0.07269601]
[1664607983697,3.48448802,19291.0,19290.0,0.07269601]
[1664607984335,3.48398768,19291.0,19290.0,0.07269601]
[1664607984807,3.58549401,19291.0,19290.0,0.07257971]
[1664607985047,3.48398768,19291.0,19290.0,0.07257971]
[1664607985545,3.53449329,19291.0,19290.0,0.07257971]
[1664607985753,3.43449329,19291.0,19290.0,0.07257971]
[1664607986330,3.48549329,19291.0,19290.0,0.07257971]
[1664607986540,3.40599329,19291.0,19290.0,0.07257971]
[1664607986808,3.48549329,19291.0,19290.0,0.07257971]
[1664607987657,3.43449329,19291.0,19290.0,0.07257971]
[1664607987885,3.48441359,19291.0,19290.0,0.07257971]
[1664607988271,3.58541359,19291.0,19290.0,0.07257971]
[1664607988698,3.53541359,19291.0,19290.0,0.07257971]
[1664607989590,3.53441359,19291.0,19290.0,0.07257971]
[1664607990473,3.58541359,19291.0,19290.0,0.07257971]
[1664607991146,3.48390798,19291.0,19290.0,0.07257971]
[1664607991614,3.43290798,19291.0,19290.0,0.07257971]
[1664607992442,3.53540195,19291.0,19290.0,0.07257971]
[1664607993342,3.48540195,19291.0,19290.0,0.07257971]
[1664607993564,3.43440195,19291.0,19290.0,0.07257971]
[1664607994221,3.51560032,19291.0,19290.0,0.07257971]
[1664607994441,3.56660032,19291.0,19290.0,0.07257971]
[1664607995107,2.96660032,19291.0,19290.0,0.07257971]
[1664607995235,2.15995627,19291.0,19290.0,0.07257971]
[1664607995467,2.75995627,19291.0,19290.0,0.07257971]
[1664607995700,2.70895627,19291.0,19290.0,0.07257971]
[1664607996136,2.6277579,19291.0,19290.0,0.07257971]
[1664607996347,3.07171189,19291.0,19290.0,0.07257971]
[1664607997690,3.02071189,19291.0,19290.0,0.07257971]
[1664607998370,2.97021792,19291.0,19290.0,0.07257971]
[1664607998830,3.07174619,19291.0,19290.0,0.07257971]
[1664607999295,3.07174649,19291.0,19290.0,0.07257971]
[1664607999743,3.02074649,19291.0,19290.0,0.07257971]
[1664608000418,2.0787925,19291.0,19290.0,0.07257971]
[1664608000643,2.08052706,19291.0,19290.0,0.07257971]
[1664608000868,2.16002706,19291.0,19290.0,0.07257971]
[1664608001102,2.67883858,19291.0,19290.0,0.07257971]
[1664608001369,2.07883858,19291.0,19290.0,0.07257971]
[1664608001596,1.97726393,19291.0,19290.0,0.07257971]
[1664608001816,2.02783106,19291.0,19290.0,0.07257971]
[1664608002277,2.37601499,19291.0,19290.0,0.07257971]
[1664608002504,2.43201499,19291.0,19290.0,0.07257971]
[1664608002745,2.08383106,19291.0,19290.0,0.07257971]
[1664608003895,2.02783106,19291.0,19290.0,0.07257971]
[1664608004565,2.08383106,19291.0,19290.0,0.07257971]
[1664608005206,2.16508181,19291.0,19290.0,0.07257971]
[1664608005646,2.02783106,19291.0,19290.0,0.07257971]
[1664608006085,1.94683579,19291.0,19290.0,0.07257971]
[1664608006539,2.01083579,19291.0,19290.0,0.07257971]
[1664608006775,2.32913377,19291.0,19290.0,0.07257971]
[1664608007000,2.22756664,19291.0,19290.0,0.07257971]
[1664608007244,2.92912216,19291.0,19290.0,0.07257971]
[1664608007466,2.92911824,19291.0,19290.0,0.07257971]
[1664608007750,2.86511824,19291.0,19290.0,0.07257971]
[1664608007979,2.54682166,19291.0,19290.0,0.07257971]
[1664608008300,1.94682166,19291.0,19290.0,0.07257971]
[1664608008525,2.00282166,19291.0,19290.0,0.07257971]
[1664608008771,2.60282166,19291.0,19290.0,0.07257971]
[1664608008979,2.00282166,19291.0,19290.0,0.07257971]
[1664608009200,2.60282166,19291.0,19290.0,0.07257971]
[1664608009427,2.99554085,19291.0,19290.0,0.07257971]
[1664608009874,2.99554054,19291.0,19290.0,0.07257971]
[1664608010106,2.93954054,19291.0,19290.0,0.07257971]
[1664608010628,2.89398785,19291.0,19290.0,0.07257971]
[1664608010840,2.9955404,19291.0,19290.0,0.07257971]
[1664608011290,5.40959578,19291.0,19290.0,0.07257971]
[1664608011514,5.59130553,19291.0,19290.0,0.07257971]
[1664608011757,5.58530553,19291.0,19290.0,0.07250387]
[1664608012431,5.66430553,19291.0,19290.0,0.07250387]
[1664608013787,5.58530553,19291.0,19290.0,0.07250387]
[1664608014204,5.43307929,19291.0,19290.0,0.07250387]
[1664608014406,5.64130553,19291.0,19290.0,0.07250387]
[1664608014766,0.0998473,19289.0,19286.0,0.0011]
[1664608014995,0.90336925,19288.0,19286.0,0.0011]
[1664608015222,1.48637687,19287.0,19286.0,0.0011]
[1664608015497,0.0998473,19286.0,19285.0,0.0031]
[1664608015731,0.95209914,19286.0,19285.0,0.0031]
[1664608015954,1.21725265,19286.0,19285.0,0.0031]
[1664608016186,1.29675265,19286.0,19285.0,0.0031]
[1664608016418,1.51782095,19286.0,19285.0,0.0031]
[1664608016643,2.11782095,19286.0,19285.0,0.0031]
[1664608016861,2.03659795,19286.0,19285.0,0.0031]
[1664608017313,2.11781582,19286.0,19285.0,0.0031]
[1664608017520,2.08659795,19286.0,19285.0,0.0031]
[1664608017758,1.94667086,19286.0,19285.0,0.0031]
[1664608018258,1.89667086,19286.0,19285.0,0.0031]
[1664608018481,2.02667086,19286.0,19285.0,0.0031]
[1664608018709,1.97667086,19286.0,19285.0,0.0031]
[1664608018933,2.02667086,19286.0,19285.0,0.0031]
[1664608019167,1.93607915,19286.0,19285.0,0.0031]
[1664608019398,2.32250303,19286.0,19285.0,0.0031]
[1664608019626,2.28309474,19286.0,19285.0,0.0031]
[1664608019856,2.24250261,19286.0,19285.0,0.0031]
[1664608020305,0.2967473,19285.0,19284.0,0.002]
[1664608020578,0.61157874,19285.0,19284.0,0.002]
[1664608020815,2.93967074,19285.0,19284.0,0.002]
[1664608021033,2.98025468,19285.0,19284.0,0.002]
[1664608021251,2.93967074,19285.0,19284.0,0.002]
[1664608021470,3.15324686,19285.0,19284.0,0.002]
[1664608021688,3.50645968,19285.0,19284.0,0.002]
[1664608021914,3.89288356,19285.0,19284.0,0.002]
[1664608022362,3.58545968,19285.0,19284.0,0.002]
[1664608023018,2.98545968,19285.0,19284.0,0.002]
[1664608023244,3.58545968,19285.0,19284.0,0.002]
[1664608023464,2.98545968,19285.0,19284.0,0.002]
[1664608023693,2.82695968,19285.0,19284.0,0.002]
[1664608023919,2.70645968,19285.0,19284.0,0.002]
[1664608024142,2.25339956,19285.0,19284.0,0.002]
[1664608024371,2.51289956,19285.0,19284.0,0.002]
[1664608024583,2.59239956,19285.0,19284.0,0.002]
[1664608025735,2.51339956,19285.0,19284.0,0.002]
[1664608026413,2.65700987,19285.0,19284.0,0.002]
[1664608026839,2.57750987,19285.0,19284.0,0.002]
[1664608027319,2.65700987,19285.0,19284.0,0.002]
[1664608027752,2.57800987,19285.0,19284.0,0.002]
[1664608028414,3.25700987,19285.0,19284.0,0.002]
[1664608029568,3.25700987,19285.0,19278.0,0.129677]
[1664608029569,0.129655,19282.0,19278.0,0.129677]
[1664608029783,0.129655,19282.0,19279.0,0.353526]
[1664608030005,0.129655,19282.0,19279.0,0.405]
[1664608030225,0.129655,19282.0,19281.0,0.359195]
[1664608030445,0.388794,19282.0,19281.0,0.359195]
[1664608030654,0.460794,19282.0,19281.0,0.359195]
[1664608031320,0.460794,19282.0,19281.0,0.005]
[1664608031750,0.388794,19282.0,19281.0,0.005]
[1664608032615,0.467794,19282.0,19281.0,0.005]
[1664608032817,0.467794,19282.0,19281.0,0.364195]
[1664608033040,0.467794,19282.0,19281.0,0.005]
[1664608033349,0.208569,19282.0,19281.0,0.66879543]
[1664608033420,0.208569,19282.0,19281.0,4.01077899]
[1664608033421,0.079,19282.0,19281.0,4.01077899]
[1664608033630,0.079,19282.0,19281.0,6.0505719]
[1664608033885,3.01170064,19284.0,19282.0,1.4]
[1664608034015,3.01170064,19284.0,19283.0,0.549195]
[1664608034425,3.01170064,19284.0,19283.0,0.05]
[1664608034641,3.06970064,19284.0,19283.0,0.05]
[1664608034864,3.06970064,19284.0,19283.0,1.209195]
[1664608035314,3.06970064,19284.0,19283.0,1.598137]
[1664608035528,3.06970064,19284.0,19283.0,0.798137]
[1664608035769,3.06970064,19284.0,19283.0,0.96006324]
[1664608035770,3.01170064,19284.0,19283.0,0.96006324]
[1664608035968,3.01170064,19284.0,19283.0,1.81006324]
[1664608036413,3.01170064,19284.0,19283.0,1.34373685]
[1664608036636,3.01170064,19284.0,19283.0,1.39373685]
[1664608036637,3.09170064,19284.0,19283.0,1.39373685]
[1664608036888,3.09170064,19284.0,19283.0,1.67595091]
[1664608037767,3.01170064,19284.0,19283.0,2.19454191]
[1664608038483,3.01170064,19284.0,19283.0,5.30627334]
[1664608038706,0.08,19284.0,19283.0,5.74441434]
[1664608038927,0.08,19284.0,19283.0,5.27410134]
[1664608039627,0.08,19284.0,19283.0,4.90036035]
[1664608039853,0.265003,19285.0,19284.0,0.38367361]
[1664608040086,0.265003,19285.0,19284.0,1.5845648]
[1664608040306,0.265003,19285.0,19284.0,3.10837819]
[1664608040528,0.265003,19285.0,19284.0,1.23061919]
[1664608040745,0.343003,19285.0,19284.0,1.25984944]
[1664608041871,0.265003,19285.0,19284.0,1.25984944]
[1664608042113,0.265003,19285.0,19284.0,0.359195]
[1664608042515,0.345003,19285.0,19284.0,0.359195]
[1664608044009,0.265003,19285.0,19284.0,0.359195]
[1664608044224,0.265003,19285.0,19283.0,0.62123106]
[1664608044225,0.3494,19285.0,19283.0,0.62123106]
[1664608044461,0.265003,19285.0,19284.0,0.359195]
[1664608044808,0.345003,19285.0,19284.0,0.359195]
[1664608045919,0.265003,19285.0,19284.0,0.359195]
[1664608046479,0.345003,19285.0,19284.0,0.359195]
[1664608047165,0.345003,19285.0,19283.0,0.129687]
[1664608047166,0.4768551,19285.0,19283.0,0.129687]
[1664608047383,0.0998473,19284.0,19283.0,0.129687]
[1664608047656,0.1842443,19284.0,19283.0,0.129687]
[1664608047878,0.4420921,19285.0,19283.0,0.129687]
[1664608048678,0.5210921,19285.0,19283.0,0.129687]
[1664608049124,0.58980674,19284.0,19283.0,0.129687]
[1664608049328,0.50540974,19284.0,19283.0,0.129687]
[1664608050463,0.40556244,19284.0,19283.0,0.129687]
[1664608050677,0.43719874,19284.0,19283.0,0.129687]
[1664608050889,0.079,19284.0,19283.0,0.129687]
[1664608051884,1.21309454,19285.0,19283.0,0.129687]
[1664608052835,1.29209454,19285.0,19283.0,0.1295694]
[1664608054024,0.3124581,19285.0,19283.0,0.1295694]
[1664608054243,0.265003,19285.0,19283.0,0.1295694]
[1664608054614,0.344003,19285.0,19283.0,0.1295694]
[1664608054836,0.0998473,19284.0,19283.0,0.1295694]
[1664608055265,0.344003,19285.0,19283.0,0.1295694]
[1664608055947,0.265003,19285.0,19283.0,0.1295694]
[1664608056669,0.344003,19285.0,19283.0,0.1295694]
[1664608057933,0.265003,19285.0,19283.0,0.1295694]
[1664608058686,0.344003,19285.0,19283.0,0.1295694]
[1664608059129,0.473637,19285.0,19283.0,0.1295694]
[1664608059974,0.394637,19285.0,19283.0,0.1295694]
[1664608060644,0.473637,19285.0,19283.0,0.1295694]
[1664608062018,0.394637,19285.0,19283.0,0.1295694]
[1664608062600,0.473637,19285.0,19283.0,0.1295694]
[1664608063019,0.344003,19285.0,19284.0,0.359195]
[1664608063263,0.344003,19285.0,19283.0,0.1295694]
[1664608063847,0.265003,19285.0,19284.0,0.359195]
[1664608064091,0.265003,19285.0,19283.0,0.1295694]
[1664608064322,0.265003,19285.0,19284.0,0.359195]
[1664608064535,0.265003,19285.0,19283.0,0.1295694]
[1664608064745,0.344003,19285.0,19283.0,0.1295694]
[1664608065866,0.344003,19285.0,19284.0,0.359195]
[1664608066088,0.344003,19285.0,19283.0,0.1295694]
[1664608066294,0.265003,19285.0,19284.0,0.359195]
[1664608066523,0.265003,19285.0,19283.0,0.1295694]
[1664608066731,0.344003,19285.0,19284.0,0.359195]
[1664608066946,0.344003,19285.0,19283.0,0.1295694]
[1664608067969,0.265003,19285.0,19284.0,0.359195]
[1664608068217,0.265003,19285.0,19283.0,0.1295694]
[1664608068642,0.344003,19285.0,19283.0,0.1295694]
[1664608068877,0.344003,19285.0,19284.0,0.359195]
[1664608069157,0.344003,19285.0,19283.0,0.1295694]
[1664608069362,0.344003,19285.0,19284.0,0.359195]
[1664608069571,0.558035,19285.0,19283.0,0.1295694]
[1664608069806,0.473638,19285.0,19283.0,0.1295694]
[1664608069937,0.394638,19285.0,19283.0,0.1295694]
[1664608070362,0.0998473,19284.0,19283.0,0.1295694]
[1664608070616,0.394638,19285.0,19283.0,0.4887644]
[1664608070819,0.473638,19285.0,19283.0,0.1295694]
[1664608071332,0.59302566,19285.0,19283.0,0.1295694]
[1664608071811,0.85229466,19285.0,19283.0,0.1295694]
[1664608072029,0.77329466,19285.0,19283.0,0.1295694]
[1664608072665,0.85229466,19285.0,19283.0,0.1295694]
[1664608073525,0.732907,19285.0,19283.0,0.1295694]
[1664608073931,0.265003,19285.0,19284.0,0.05]
[1664608074164,0.265003,19285.0,19283.0,0.3889034]
[1664608074586,0.265003,19285.0,19283.0,0.2592564]
[1664608074801,0.344003,19285.0,19283.0,0.2592564]
[1664608075318,0.344003,19285.0,19284.0,0.359195]
[1664608075553,0.344003,19285.0,19283.0,0.2592564]
[1664608076037,0.265003,19285.0,19283.0,0.2592564]
[1664608076842,0.344003,19285.0,19283.0,0.2592564]
[1664608077014,0.473637,19285.0,19283.0,0.2592564]
[1664608077875,0.394637,19285.0,19283.0,0.2592564]
[1664608078088,0.394637,19285.0,19284.0,0.359195]
[1664608078776,0.394637,19285.0,19283.0,0.1295694]
[1664608078777,0.473637,19285.0,19283.0,0.1295694]
[1664608079064,0.473637,19285.0,19284.0,0.359195]
[1664608079271,0.473637,19285.0,19283.0,0.2592564]
[1664608079617,0.473637,19285.0,19283.0,0.1295694]
[1664608079820,0.473637,19285.0,19284.0,0.359195]
[1664608080032,0.394637,19285.0,19283.0,0.2592564]
[1664608080258,0.394637,19285.0,19283.0,0.1295694]
[1664608080472,0.394637,19285.0,19284.0,0.359195]
[1664608080707,0.394637,19285.0,19283.0,0.2592624]
[1664608080862,0.344003,19285.0,19284.0,0.359195]
[1664608081676,0.344003,19285.0,19283.0,0.2592624]
[1664608081923,0.344003,19285.0,19284.0,0.359195]
[1664608082151,0.265003,19285.0,19283.0,0.64292328]
[1664608082380,0.265003,19285.0,19284.0,0.359195]
[1664608082607,0.265003,19285.0,19283.0,0.2592624]
[1664608082853,0.344003,19285.0,19284.0,0.359195]